bitfinex/quotes_BTCUSD_20230404
["timestamp","ask_amount","ask_price","bid_price","bid_amount"]
[1680580846468,0.40799524,27876.0,27873.0,0.19719963]
[1680580846696,0.40799524,27876.0,27873.0,0.19819963]
[1680580847167,0.40799524,27876.0,27873.0,0.19719963]
[1680580847392,0.077,27874.0,27873.0,0.19819963]
[1680580848539,0.077,27874.0,27873.0,0.19719963]
[1680580849480,0.089,27874.0,27873.0,0.19819963]
[1680580850625,0.089,27874.0,27873.0,0.001]
[1680580851306,0.012,27874.0,27873.0,0.001]
[1680580854695,0.36863688,27874.0,27873.0,0.001]
[1680580855136,0.36146188,27874.0,27873.0,0.001]
[1680580859813,0.36171503,27874.0,27873.0,0.001]
[1680580860036,0.36146188,27874.0,27873.0,0.001]
[1680580860919,0.36863688,27874.0,27873.0,0.001]
[1680580861367,0.096475,27874.0,27873.0,0.001]
[1680580862004,0.50536344,27874.0,27873.0,0.001]
[1680580862458,1.79674688,27874.0,27873.0,0.001]
[1680580862890,2.09674688,27874.0,27873.0,0.001]
[1680580863322,2.08474688,27874.0,27871.0,0.21456556]
[1680580863537,0.95985149,27874.0,27873.0,0.001]
[1680580863793,0.95985149,27874.0,27871.0,0.08581005]
[1680580863794,1.69166376,27874.0,27871.0,0.08581005]
[1680580864027,0.72440534,27874.0,27873.0,0.001]
[1680580864282,0.72440534,27874.0,27869.0,0.21474556]
[1680580864283,1.76873027,27874.0,27869.0,0.21474556]
[1680580864505,0.0773,27870.0,27869.0,0.08581005]
[1680580864702,0.084476,27870.0,27869.0,0.08581005]
[1680580865402,0.0773,27870.0,27869.0,0.21456556]
[1680580865598,0.084476,27870.0,27869.0,0.08581005]
[1680580865818,0.10438402,27870.0,27869.0,0.08581005]
[1680580866271,0.12038402,27870.0,27869.0,0.08581005]
[1680580867263,0.12038402,27870.0,27869.0,0.21456556]
[1680580867463,0.100476,27870.0,27869.0,0.55253339]
[1680580867698,0.100476,27870.0,27869.0,0.63853028]
[1680580867945,0.108083,27870.0,27869.0,0.08599689]
[1680580868397,0.1079827,27870.0,27869.0,0.08599689]
[1680580869388,0.14457237,27870.0,27869.0,0.08599689]
[1680580871843,0.14457237,27870.0,27868.0,0.50142427]
[1680580872101,0.0931997,27870.0,27869.0,0.38971396]
[1680580872553,0.0771997,27870.0,27869.0,0.38971396]
[1680580872770,0.0871997,27870.0,27869.0,0.38971396]
[1680580872994,0.0771997,27870.0,27869.0,0.38971396]
[1680580873465,0.33664195,27872.0,27869.0,0.38971396]
[1680580873728,0.016,27870.0,27869.0,0.38971396]
[1680580874685,0.007175,27871.0,27869.0,0.38971396]
[1680580875363,0.016,27870.0,27869.0,0.38971396]
[1680580875599,0.007175,27871.0,27869.0,0.38971396]
[1680580875812,0.023175,27871.0,27869.0,0.38971396]
[1680580876034,0.007175,27871.0,27869.0,0.38971396]
[1680580876264,0.016,27870.0,27869.0,0.38971396]
[1680580876680,0.007175,27871.0,27869.0,0.38971396]
[1680580877219,0.3894257,27871.0,27869.0,0.38971396]
[1680580877441,0.38967885,27871.0,27869.0,0.38971396]
[1680580877658,0.40567885,27871.0,27869.0,0.38971396]
[1680580878321,0.49132062,27871.0,27868.0,0.08617689]
[1680580878513,0.49106747,27871.0,27868.0,0.16673145]
[1680580879186,0.47506747,27871.0,27868.0,0.16673145]
[1680580879421,0.48506747,27871.0,27868.0,0.29548696]
[1680580879872,0.3994257,27871.0,27868.0,0.16673145]
[1680580880104,0.3994257,27871.0,27868.0,0.29548696]
[1680580880329,0.3994257,27871.0,27868.0,0.16673145]
[1680580881498,0.4994257,27871.0,27868.0,0.16673145]
[1680580882617,0.1,27870.0,27868.0,0.16673145]
[1680580882844,0.007176,27869.0,27868.0,0.08599689]
[1680580883987,0.017176,27869.0,27868.0,0.08599689]
[1680580884914,0.024356,27869.0,27868.0,0.08599689]
[1680580885118,0.017176,27869.0,27868.0,0.08599689]
[1680580886427,0.024536,27869.0,27868.0,0.08599689]
[1680580886676,0.024481,27869.0,27868.0,0.08599689]
[1680580886889,0.09820072,27869.0,27868.0,0.08599689]
[1680580887090,0.39288654,27869.0,27868.0,0.08599689]
[1680580887811,0.38558154,27869.0,27868.0,0.08599689]
[1680580888240,0.38558154,27869.0,27868.0,0.08605689]
[1680580888461,0.38558154,27869.0,27868.0,6e-05]
[1680580888700,0.38558154,27869.0,27867.0,0.56406989]
[1680580889239,0.44587739,27869.0,27867.0,0.56406989]
[1680580889453,0.38558154,27869.0,27867.0,0.56406989]
[1680580889668,0.37558154,27869.0,27867.0,0.56406989]
[1680580889873,0.37858154,27869.0,27867.0,0.56406989]
[1680580890465,0.37858154,27869.0,27867.0,0.2149324]
[1680580890663,0.43817739,27869.0,27867.0,0.2149324]
[1680580890867,0.43817739,27869.0,27867.0,0.2147524]
[1680580890868,0.43843054,27869.0,27867.0,0.2147524]
[1680580891072,0.43817739,27869.0,27868.0,0.08599689]
[1680580891227,0.52285639,27869.0,27867.0,0.2149324]
[1680580891426,0.51547739,27869.0,27867.0,0.63871554]
[1680580891640,0.007359,27868.0,27867.0,0.2149324]
[1680580891839,0.50830139,27869.0,27867.0,0.2149324]
[1680580892045,0.007176,27868.0,27867.0,0.2149324]
[1680580892259,0.07303194,27868.0,27867.0,0.2149324]
[1680580892507,0.07303194,27868.0,27867.0,0.5527186]
[1680580893428,0.07603194,27868.0,27867.0,0.5527186]
[1680580895215,0.010176,27868.0,27867.0,0.5527186]
[1680580896539,0.010176,27868.0,27867.0,0.21487379]
[1680580896755,0.017406,27868.0,27867.0,0.21487379]
[1680580897182,0.010176,27868.0,27867.0,0.21487379]
[1680580897902,0.017491,27868.0,27867.0,0.21487379]
[1680580898321,0.06814177,27868.0,27867.0,0.21487379]
[1680580898521,0.06814177,27868.0,27867.0,0.5527294]
[1680580898731,0.06082677,27868.0,27867.0,0.5527294]
[1680580902660,0.06082677,27868.0,27867.0,0.12893551]
[1680580902903,0.06082677,27868.0,27867.0,0.5527294]
[1680580903118,0.06082677,27868.0,27867.0,0.5956479]
[1680580904424,0.06082677,27868.0,27867.0,0.7246315]
[1680580904654,0.06082677,27868.0,27867.0,0.5956479]
[1680580905571,0.010176,27868.0,27867.0,0.5956479]
[1680580906025,0.010176,27868.0,27867.0,0.5955879]
[1680580906260,0.010176,27868.0,27867.0,0.5956479]
[1680580907433,0.4380133,27868.0,27867.0,0.5956479]
[1680580907645,0.4453833,27868.0,27867.0,0.5956479]
[1680580908365,0.4380133,27868.0,27867.0,0.5956479]
[1680580908820,0.4452023,27868.0,27867.0,0.5956479]
[1680580909038,0.4380133,27868.0,27867.0,0.5956479]
[1680580909264,0.4380133,27868.0,27867.0,0.72469161]
[1680580909487,0.4380133,27868.0,27867.0,0.5956479]
[1680580909720,0.4453793,27868.0,27867.0,0.17185401]
[1680580909947,0.50211773,27868.0,27867.0,0.17185401]
[1680580910169,0.49475173,27868.0,27867.0,0.30092938]
[1680580910603,0.49475173,27868.0,27867.0,0.72472327]
[1680580911275,0.57205173,27868.0,27867.0,0.72472327]
[1680580911496,0.14421443,27868.0,27867.0,0.72472327]
[1680580911716,0.087476,27868.0,27867.0,0.72472327]
[1680580911936,0.087476,27868.0,27867.0,0.55304926]
[1680580912391,0.087476,27868.0,27867.0,0.5956479]
[1680580913078,0.087476,27868.0,27867.0,0.81024042]
[1680580913304,0.087476,27868.0,27867.0,0.5956479]
[1680580914658,0.087509,27868.0,27867.0,0.5956479]
[1680580914878,0.087476,27868.0,27867.0,0.5956479]
[1680580916926,0.087476,27868.0,27867.0,1.13925756]
[1680580918276,0.087476,27868.0,27867.0,0.96758355]
[1680580918500,0.087476,27868.0,27867.0,1.13966197]
[1680580919817,0.087476,27868.0,27867.0,0.81064483]
[1680580920283,0.087476,27868.0,27867.0,0.59605231]
[1680580921378,0.010176,27868.0,27867.0,0.59605231]
[1680580924208,0.010176,27868.0,27867.0,0.81064483]
[1680580925076,0.08981934,27868.0,27867.0,0.81064483]
[1680580925981,0.08981934,27868.0,27867.0,0.63856641]
[1680580926168,0.08981934,27868.0,27867.0,0.8106846]
[1680580926603,0.08981934,27868.0,27867.0,0.63856641]
[1680580926816,0.08981934,27868.0,27867.0,0.81068401]
[1680580927268,0.010176,27868.0,27867.0,0.81068462]
[1680580927719,0.010176,27868.0,27867.0,0.63856641]
[1680580929515,0.010176,27868.0,27867.0,0.63838641]
[1680580929731,0.010176,27868.0,27867.0,0.63856641]
[1680580930245,0.003,27868.0,27867.0,0.63856641]
[1680580930469,0.003,27868.0,27867.0,0.71075091]
[1680580930906,0.003,27868.0,27867.0,0.71057091]
[1680580932455,0.003,27868.0,27867.0,0.71075091]
[1680580932891,0.003,27868.0,27867.0,0.92591596]
[1680580933109,0.003,27868.0,27867.0,0.71075091]
[1680580933328,0.003,27868.0,27867.0,0.92591673]
[1680580934700,0.003,27868.0,27867.0,1.04425993]
[1680580934915,0.003,27868.0,27867.0,0.92591673]
[1680580935143,0.003,27868.0,27867.0,0.97855773]
[1680580935353,0.003,27868.0,27867.0,0.97837773]
[1680580936587,0.003,27868.0,27867.0,0.92573673]
[1680580937142,0.003,27868.0,27867.0,0.92591673]
[1680580938981,0.003,27868.0,27867.0,0.92573673]
[1680580939434,0.003,27868.0,27867.0,0.92591673]
[1680580941674,0.003,27868.0,27867.0,0.98093073]
[1680580942316,0.003,27868.0,27867.0,0.92591673]
[1680580942786,0.003,27868.0,27867.0,0.97843473]
[1680580943014,0.003,27868.0,27867.0,0.97709773]
[1680580943435,0.003,27868.0,27867.0,0.92593698]
[1680580943650,0.003,27868.0,27867.0,0.97569298]
[1680580943863,0.003,27868.0,27867.0,0.92593698]
[1680580944290,0.003,27868.0,27867.0,0.97761798]
[1680580944539,0.003,27868.0,27867.0,0.92593698]
[1680580945590,0.003,27868.0,27867.0,0.92587698]
[1680580945805,0.003,27868.0,27867.0,0.92575698]
[1680580946026,0.003,27868.0,27867.0,0.97877298]
[1680580946245,0.003,27868.0,27867.0,0.92593698]
[1680580947376,0.003,27868.0,27867.0,0.92575698]
[1680580947517,0.003,27868.0,27867.0,0.92593698]
[1680580949736,0.010176,27868.0,27867.0,0.92593698]
[1680580950792,0.010176,27868.0,27867.0,0.63915996]
[1680580951011,0.36766852,27868.0,27867.0,0.21536607]
[1680580951235,0.36043352,27868.0,27867.0,0.21536607]
[1680580951919,0.36043352,27868.0,27867.0,0.38751761]
[1680580952110,0.36043352,27868.0,27867.0,0.63915996]
[1680580952334,0.36043352,27868.0,27867.0,0.81131165]
[1680580953381,0.36043352,27868.0,27867.0,0.63915996]
[1680580954020,0.43773352,27868.0,27867.0,0.63915996]
[1680580954285,0.43773352,27868.0,27867.0,0.61960563]
[1680580954964,0.52356799,27868.0,27867.0,0.61960563]
[1680580957623,0.17331047,27868.0,27867.0,0.61960563]
[1680580958540,0.087476,27868.0,27867.0,0.61960563]
[1680580958805,0.087476,27868.0,27867.0,0.8347917]
[1680580959632,0.087476,27868.0,27867.0,0.61960563]
[1680580961252,0.003,27868.0,27867.0,0.61960563]
[1680580962282,0.003,27868.0,27867.0,0.8347917]
[1680580962684,0.003,27868.0,27867.0,0.66263932]
[1680580963115,0.003,27868.0,27867.0,0.83477454]
[1680580963317,0.003,27868.0,27867.0,0.76970561]
[1680580963520,0.003,27868.0,27867.0,0.94184017]
[1680580964071,0.003,27868.0,27867.0,0.76970561]
[1680580964981,0.003,27868.0,27867.0,0.76952561]
[1680580965198,0.003,27868.0,27867.0,0.76970561]
[1680580967407,0.003,27868.0,27867.0,0.76952561]
[1680580967822,0.003,27868.0,27867.0,0.76958561]
[1680580968026,0.003,27868.0,27867.0,0.76970561]
[1680580971003,0.003,27868.0,27867.0,0.82211261]
[1680580971970,0.003,27868.0,27867.0,0.82193261]
[1680580972420,0.003,27868.0,27867.0,0.66245932]
[1680580972637,0.5789335,27868.0,27867.0,0.3249066]
[1680580972860,0.5789335,27868.0,27867.0,0.19579768]
[1680580973071,0.5789335,27868.0,27867.0,0.61959157]
[1680580974321,0.5759335,27868.0,27867.0,0.61959157]
[1680580974529,0.5859335,27868.0,27867.0,0.61959157]
[1680580974762,0.5759335,27868.0,27867.0,0.61959157]
[1680580975101,0.5919335,27868.0,27867.0,0.61959157]
[1680580977302,0.5992735,27868.0,27867.0,0.61959157]
[1680580977510,0.23499493,27868.0,27867.0,0.10948123]
[1680580977738,2.19257726,27868.0,27867.0,0.02340828]
[1680580977962,0.90086597,27868.0,27867.0,0.02340828]
[1680580978171,0.54349493,27868.0,27867.0,0.02340828]
[1680580978388,0.8934473,27868.0,27867.0,0.02340828]
[1680580978608,2.16916262,27868.0,27867.0,0.02340828]
[1680580978838,2.18516262,27868.0,27867.0,0.02340828]
[1680580979052,2.16916262,27868.0,27865.0,0.21517818]
[1680580979280,0.0773,27866.0,27865.0,0.21517818]
[1680580979494,0.09908415,27866.0,27865.0,0.21517818]
[1680580979721,0.09908415,27866.0,27865.0,0.08607295]
[1680580979951,0.19908415,27866.0,27865.0,0.08607295]
[1680580980160,0.19908415,27866.0,27865.0,0.10922013]
[1680580980161,0.59585001,27866.0,27865.0,0.10922013]
[1680580980376,1.0125758,27866.0,27865.0,0.10922013]
[1680580980584,1.0711758,27866.0,27865.0,0.10922013]
[1680580980792,1.0981758,27866.0,27865.0,0.10922013]
[1680580983426,1.22010675,27866.0,27863.0,0.17231832]
[1680580983697,0.2,27863.0,27860.0,0.00115662]
[1680580983951,0.1,27860.0,27858.0,0.11117665]
[1680580984174,0.175537,27859.0,27857.0,0.17219832]
[1680580984392,0.2263687,27858.0,27857.0,0.17219832]
[1680580984613,0.23380085,27858.0,27857.0,6e-05]
[1680580984843,0.2335477,27858.0,27856.0,0.0208]
[1680580985108,0.0773,27857.0,27856.0,0.0208]
[1680580985340,0.084479,27857.0,27856.0,0.0208]
[1680580985579,0.14870084,27857.0,27856.0,0.0208]
[1680580986425,0.17570084,27857.0,27856.0,0.0208]
[1680580986652,0.14870084,27857.0,27856.0,0.0208]
[1680580986869,0.17570084,27857.0,27856.0,0.0208]
[1680580988048,0.5349524,27857.0,27856.0,0.0208]
[1680580988512,0.5349524,27857.0,27855.0,0.0208]
[1680580988736,0.14685128,27856.0,27855.0,0.02086]
[1680580988974,0.15403028,27856.0,27855.0,0.0208]
[1680580989416,0.14685128,27856.0,27855.0,0.0208]
[1680580989628,0.0773,27856.0,27855.0,0.0208]
[1680580990090,0.1043,27856.0,27855.0,0.0208]
[1680580990550,0.111479,27856.0,27855.0,0.0208]
[1680580990977,0.118707,27856.0,27855.0,0.0208]
[1680580991189,0.041407,27856.0,27855.0,0.04673812]
[1680580991640,0.09185659,27856.0,27855.0,0.04673812]
[1680580992752,0.09185659,27856.0,27855.0,0.02593812]
[1680580993213,0.027,27856.0,27855.0,0.02593812]
[1680580994055,0.034179,27856.0,27855.0,0.02593812]
[1680580994761,0.027,27856.0,27855.0,0.02593812]
[1680580995336,0.027,27856.0,27855.0,0.14781594]
[1680580996959,0.027,27856.0,27855.0,0.02593812]
[1680580999374,0.07945305,27856.0,27855.0,0.02593812]
[1680580999818,0.027,27856.0,27855.0,0.02593812]
[1680581002712,0.034179,27856.0,27855.0,0.02593812]
[1680581003238,0.027,27856.0,27855.0,0.02593812]
[1680581003880,0.027,27856.0,27855.0,0.02093812]
[1680581004764,0.034179,27856.0,27855.0,0.02093812]
[1680581005172,0.08034795,27856.0,27855.0,0.02093812]
[1680581006288,0.05334795,27856.0,27855.0,0.02093812]
[1680581006511,0.08034795,27856.0,27855.0,0.02093812]
[1680581007892,0.05334795,27856.0,27855.0,0.02093812]
[1680581008960,0.08034795,27856.0,27855.0,0.02093812]
[1680581009558,0.54881767,27856.0,27855.0,0.02093812]
[1680581009989,0.52181767,27856.0,27855.0,0.02093812]
[1680581010185,0.54881767,27856.0,27855.0,0.02093812]
[1680581010632,0.52181767,27856.0,27855.0,0.02093812]
[1680581010857,0.54881767,27856.0,27855.0,0.02093812]
[1680581011083,0.54159267,27856.0,27855.0,0.02093812]
[1680581011302,0.54881567,27856.0,27855.0,0.02093812]
[1680581011514,0.54159267,27856.0,27855.0,0.02093812]
[1680581012760,0.51459267,27856.0,27855.0,0.02093812]
[1680581012978,0.54159267,27856.0,27855.0,0.02093812]
[1680581013197,0.54884367,27856.0,27855.0,0.02093812]
[1680581014078,0.49542372,27856.0,27855.0,0.02093812]
[1680581014306,0.49567687,27856.0,27855.0,0.02093812]
[1680581016443,0.49542372,27856.0,27855.0,0.02093812]
[1680581017121,0.50269072,27856.0,27855.0,0.02093812]
[1680581017351,0.49542372,27856.0,27855.0,0.02093812]
[1680581017570,0.55859405,27856.0,27855.0,0.02093812]
[1680581019631,0.55859405,27856.0,27855.0,0.10667042]
[1680581019836,0.5588472,27856.0,27855.0,0.10667042]
[1680581020724,0.5588472,27856.0,27855.0,0.02093812]
[1680581020915,0.5662492,27856.0,27855.0,0.02093812]
[1680581021317,0.6435492,27856.0,27855.0,0.02093812]
[1680581023361,0.6435492,27856.0,27855.0,0.10667042]
[1680581023583,0.6435492,27856.0,27855.0,0.02093812]
[1680581024037,0.6435492,27856.0,27855.0,0.10667042]
[1680581024676,0.6435492,27856.0,27855.0,0.23527735]
[1680581024878,0.6361472,27856.0,27855.0,0.65925637]
[1680581025322,0.6361472,27856.0,27855.0,0.23527735]
[1680581025690,0.6437532,27856.0,27855.0,0.40826251]
[1680581025925,0.6361472,27856.0,27855.0,0.83224328]
[1680581026763,0.17490248,27856.0,27855.0,0.66010496]
[1680581026962,0.11173215,27856.0,27855.0,0.66010496]
[1680581027293,0.11173215,27856.0,27855.0,0.97442949]
[1680581030148,0.11173215,27856.0,27855.0,0.66010496]
[1680581030364,0.11914015,27856.0,27855.0,0.66010496]
[1680581030571,0.11173215,27856.0,27855.0,0.66010496]
[1680581031004,0.11141702,27856.0,27855.0,0.66010496]
[1680581031209,0.03411702,27856.0,27855.0,0.66010496]
[1680581032249,0.007179,27856.0,27855.0,0.66010496]
[1680581032471,0.034179,27856.0,27855.0,0.66010496]
[1680581035027,0.027,27856.0,27855.0,0.66010496]
[1680581035893,0.07253996,27856.0,27855.0,0.66010496]
[1680581036147,0.027,27856.0,27855.0,0.66010496]
[1680581036337,0.034179,27856.0,27855.0,0.66010496]
[1680581037295,0.027,27856.0,27855.0,0.44491889]
[1680581037533,0.027,27856.0,27855.0,1.03298135]
[1680581038181,0.30743115,27860.0,27855.0,1.03298135]
[1680581038415,0.08392763,27859.0,27858.0,0.12912933]
[1680581038660,0.0824493,27859.0,27858.0,0.12912933]
[1680581038879,0.08219615,27859.0,27858.0,0.12912933]
[1680581039099,0.0824493,27859.0,27858.0,0.1529539]
[1680581039322,0.0824493,27859.0,27858.0,0.57693467]
[1680581039759,0.0994493,27859.0,27858.0,0.57793467]
[1680581040389,0.49092402,27859.0,27858.0,0.57793467]
[1680581040607,0.79092402,27859.0,27858.0,0.57793467]
[1680581041349,0.79092402,27859.0,27858.0,0.24004006]
[1680581041350,0.86822402,27859.0,27858.0,0.24004006]
[1680581041497,0.86822402,27859.0,27858.0,0.57793467]
[1680581042267,0.87549402,27859.0,27858.0,0.57793467]
[1680581042488,0.98664986,27859.0,27858.0,0.24004007]
[1680581042711,0.98664986,27859.0,27858.0,0.57793467]
[1680581042928,0.98664986,27859.0,27858.0,0.24004102]
[1680581043143,0.98664986,27859.0,27858.0,0.57793467]
[1680581045128,0.99514986,27859.0,27858.0,0.24004104]
[1680581045761,0.99514986,27859.0,27858.0,0.11091171]
[1680581047546,0.99514986,27859.0,27858.0,0.24004104]
[1680581047763,0.99514986,27859.0,27858.0,0.11091171]
[1680581048186,1.17244986,27859.0,27858.0,0.11091171]
[1680581048403,1.07244986,27859.0,27858.0,0.11091171]
[1680581051410,0.99514986,27859.0,27858.0,0.11091171]
[1680581054277,0.99514986,27859.0,27858.0,0.24004104]
[1680581054892,0.39455315,27859.0,27858.0,0.1539539]
[1680581055111,0.32443215,27859.0,27858.0,0.53727311]
[1680581055325,0.31725315,27859.0,27858.0,0.96122725]
[1680581055564,0.317,27859.0,27858.0,0.96142125]
[1680581055773,0.317,27859.0,27858.0,0.83227792]
[1680581056474,0.017,27859.0,27858.0,0.83227792]
[1680581056684,0.017,27859.0,27858.0,0.87514103]
[1680581056892,0.017,27859.0,27858.0,0.58668881]
[1680581057100,0.017,27859.0,27858.0,0.49927671]
[1680581057321,0.017,27859.0,27858.0,0.83059941]
[1680581057784,0.017,27859.0,27858.0,0.59927671]
[1680581057989,0.017,27859.0,27858.0,0.93051432]
[1680581058203,0.00881107,27861.0,27858.0,0.49809671]
[1680581058434,0.30044871,27863.0,27860.0,0.17206171]
[1680581058656,0.30044871,27863.0,27861.0,0.21507714]
[1680581058871,0.30044871,27863.0,27862.0,0.08603086]
[1680581059106,0.30762571,27863.0,27862.0,0.10941311]
[1680581059502,0.32462571,27863.0,27862.0,0.10941311]
[1680581059708,0.30762571,27863.0,27862.0,0.02338225]
[1680581059913,0.33462571,27863.0,27862.0,0.11041311]
[1680581060206,0.33462571,27863.0,27862.0,0.02438225]
[1680581060645,0.32744871,27863.0,27862.0,0.02438225]
[1680581060816,0.33462571,27863.0,27862.0,0.02438225]
[1680581061444,0.32744871,27863.0,27862.0,0.02438225]
[1680581062224,0.33462571,27863.0,27862.0,0.02438225]
[1680581062892,0.33462571,27863.0,27862.0,0.2349725]
[1680581071878,0.42033474,27863.0,27862.0,0.02438225]
[1680581072067,0.33462571,27863.0,27862.0,0.02438225]
[1680581078769,0.32744871,27863.0,27862.0,0.24858602]
[1680581078998,0.02744871,27863.0,27862.0,0.29927502]
[1680581079282,0.027,27863.0,27862.0,0.29893602]
[1680581079501,0.027,27863.0,27862.0,0.24858602]
[1680581081447,0.027,27863.0,27862.0,0.17168602]
[1680581081674,0.02690927,27863.0,27862.0,0.17168602]
[1680581081883,0.02690927,27863.0,27862.0,0.21809834]
[1680581082112,0.02690927,27863.0,27862.0,0.17168602]
[1680581083190,0.02690927,27863.0,27862.0,0.22676902]
[1680581083416,0.02690927,27863.0,27862.0,0.22556302]
[1680581083612,0.02690927,27863.0,27862.0,0.31159388]
[1680581083860,0.02690927,27863.0,27862.0,0.39438978]
[1680581084084,0.02690927,27863.0,27862.0,0.60033606]
[1680581084320,0.02690927,27863.0,27862.0,1.05434743]
[1680581084538,0.02690927,27863.0,27862.0,1.44249564]
[1680581084774,0.02690927,27863.0,27862.0,1.31344936]
[1680581084995,0.02690927,27863.0,27862.0,1.34711009]
[1680581085212,0.02461957,27863.0,27862.0,1.34705009]
[1680581085437,0.02461957,27863.0,27862.0,0.91076515]
[1680581085675,0.02461957,27863.0,27862.0,0.90976515]
[1680581085886,0.00044871,27867.0,27862.0,1.13919829]
[1680581086101,0.39337517,27868.0,27862.0,0.43962135]
[1680581086320,0.00044871,27868.0,27865.0,0.0773]
[1680581086548,0.34589243,27870.0,27865.0,0.0773]
[1680581086743,0.33871643,27870.0,27865.0,0.16320299]
[1680581087005,0.00762471,27870.0,27865.0,0.16320299]
[1680581087223,0.00762471,27870.0,27866.0,0.42455594]
[1680581087446,0.30762471,27870.0,27866.0,0.42455594]
[1680581087666,0.31062471,27870.0,27866.0,0.42455594]
[1680581088330,0.30762471,27870.0,27866.0,0.42455594]
[1680581088536,0.31762471,27870.0,27866.0,0.42555594]
[1680581088756,0.30762471,27870.0,27866.0,0.42455594]
[1680581089623,0.30762471,27870.0,27867.0,0.17074632]
[1680581089848,0.31062471,27870.0,27867.0,0.17074632]
[1680581090365,0.30762471,27870.0,27867.0,0.17074632]
[1680581090817,0.31762471,27870.0,27867.0,0.17174632]
[1680581091259,0.31044871,27870.0,27867.0,0.17174632]
[1680581091720,0.31762471,27870.0,27867.0,0.17174632]
[1680581092211,0.70588994,27870.0,27867.0,0.17174632]
[1680581092434,0.79017617,27870.0,27867.0,0.17174632]
[1680581092834,0.70588994,27870.0,27867.0,0.17174632]
[1680581093264,0.70588994,27870.0,27868.0,0.02420007]
[1680581094047,0.69588994,27870.0,27868.0,0.02420007]
[1680581094258,0.71188994,27870.0,27868.0,0.02620007]
[1680581108469,0.41531062,27869.0,27868.0,0.02620007]
[1680581108690,0.41575933,27869.0,27868.0,0.02620007]
[1680581110378,0.41531062,27869.0,27868.0,0.0261027]
[1680581110578,0.41531062,27869.0,27868.0,0.0241027]
[1680581110777,0.43131062,27869.0,27868.0,0.0261027]
[1680581111563,0.43861162,27869.0,27868.0,0.0261027]
[1680581111758,0.43131062,27869.0,27868.0,0.0261027]
[1680581111963,0.43848662,27869.0,27868.0,0.0261027]
[1680581112375,0.43131062,27869.0,27868.0,0.0261027]
[1680581113319,0.016,27869.0,27868.0,0.0261027]
[1680581114448,0.01591218,27869.0,27868.0,0.0261027]
[1680581115574,0.02332118,27869.0,27868.0,0.0261027]
[1680581115797,0.40803058,27869.0,27868.0,0.0261027]
[1680581116460,0.40062158,27869.0,27868.0,0.0261027]
[1680581116885,0.40792658,27869.0,27868.0,0.0261027]
[1680581117108,0.40062158,27869.0,27868.0,0.0261027]
[1680581121336,0.47762158,27869.0,27868.0,0.0261027]
[1680581122439,0.53775707,27869.0,27868.0,0.0261027]
[1680581123497,0.47762158,27869.0,27868.0,0.0261027]
[1680581124870,0.47044558,27869.0,27868.0,0.0261027]
[1680581128305,0.47044558,27869.0,27868.0,0.11200569]
[1680581130344,0.09291218,27869.0,27868.0,0.15635718]
[1680581130566,0.09291218,27869.0,27868.0,0.58015062]
[1680581131029,0.01591218,27869.0,27868.0,0.58015062]
[1680581137635,0.01591218,27869.0,27868.0,0.75195658]
[1680581137837,0.01591218,27869.0,27868.0,0.58015062]
[1680581138234,0.01591218,27869.0,27868.0,0.75195658]
[1680581141299,0.01591218,27869.0,27868.0,0.80475058]
[1680581141511,0.01591218,27869.0,27868.0,0.80414958]
[1680581142577,0.01591218,27869.0,27868.0,0.75195658]
[1680581142790,0.01591218,27869.0,27868.0,0.80236858]
[1680581144520,0.01591218,27869.0,27868.0,0.80096858]
[1680581146052,0.01591218,27869.0,27868.0,0.6721141]
[1680581148319,0.01591218,27869.0,27868.0,0.6217021]
[1680581151477,0.01591218,27869.0,27868.0,0.6764751]
[1680581151701,0.01591218,27869.0,27868.0,0.6217021]
[1680581152038,0.01591218,27869.0,27868.0,0.6747951]
[1680581152455,0.01591218,27869.0,27868.0,0.6709191]
[1680581155306,0.01591218,27869.0,27868.0,0.6217021]
[1680581157593,0.01591218,27869.0,27868.0,0.75081175]
[1680581157815,0.01591218,27869.0,27868.0,0.75081204]
[1680581158245,0.01591218,27869.0,27868.0,0.6217021]
[1680581159232,0.01591218,27869.0,27868.0,0.75081078]
[1680581159643,0.01591218,27869.0,27868.0,0.75081074]
[1680581161378,0.01591218,27869.0,27868.0,0.6217021]
[1680581161764,0.01591218,27869.0,27868.0,0.6744081]
[1680581162223,0.01591218,27869.0,27868.0,0.6740981]
[1680581162433,0.01591218,27869.0,27868.0,0.6230021]
[1680581162868,0.01591218,27869.0,27868.0,0.83807924]
[1680581163307,0.01591218,27869.0,27868.0,0.88707024]
[1680581163425,0.01591218,27869.0,27868.0,0.66627328]
[1680581163850,0.01591218,27869.0,27868.0,0.89231739]
[1680581164065,0.01591218,27869.0,27868.0,0.66627328]
[1680581164266,0.01591218,27869.0,27868.0,0.71995428]
[1680581164468,0.01591218,27869.0,27868.0,0.83840373]
[1680581164687,0.01591218,27869.0,27868.0,1.10157048]
[1680581164908,0.01591218,27869.0,27868.0,0.92944003]
[1680581165122,0.01591218,27869.0,27868.0,0.97917603]
[1680581167498,0.01591218,27869.0,27868.0,0.76409889]
[1680581167960,0.01591218,27869.0,27868.0,0.86789371]
[1680581168387,0.01591218,27869.0,27868.0,0.76427889]
[1680581168690,0.0089326,27871.0,27868.0,0.76227889]
[1680581168899,0.0089326,27871.0,27870.0,0.30117191]
[1680581169124,0.0089326,27871.0,27870.0,0.60357112]
[1680581170282,0.0089326,27871.0,27870.0,0.6296843]
[1680581170709,0.0089326,27871.0,27870.0,0.8096843]
[1680581170924,0.0189326,27871.0,27870.0,0.8106843]
[1680581175327,0.0189326,27871.0,27870.0,0.89669592]
[1680581175538,0.0189326,27871.0,27870.0,0.8106843]
[1680581175752,0.0189326,27871.0,27870.0,0.89669565]
[1680581176393,0.0189326,27871.0,27870.0,0.8106843]
[1680581177874,0.0189326,27871.0,27870.0,0.89669076]
[1680581178088,0.0189326,27871.0,27870.0,0.89547376]
[1680581178764,0.0189326,27871.0,27870.0,0.47168032]
[1680581179210,0.0189326,27871.0,27870.0,0.47401532]
[1680581179604,0.0189326,27871.0,27870.0,0.42219332]
[1680581179958,0.01,27871.0,27870.0,0.42219332]
[1680581180158,0.01,27871.0,27870.0,0.89880012]
[1680581180291,0.01,27871.0,27870.0,1.13748239]
[1680581180994,0.01,27871.0,27870.0,1.30958062]
[1680581181421,0.01,27871.0,27870.0,1.13748239]
[1680581181637,0.01,27871.0,27870.0,1.30958062]
[1680581182072,0.00993101,27871.0,27870.0,1.18062694]
[1680581182286,0.00993101,27871.0,27870.0,1.30949507]
[1680581183287,0.00993101,27871.0,27870.0,1.13739684]
[1680581183452,0.00993101,27871.0,27870.0,1.30949507]
[1680581184158,0.00993101,27871.0,27870.0,1.13739684]
[1680581185269,0.00993101,27871.0,27870.0,1.30949507]